[Event "Czech Championship 2024"]
[Site "Ostrava"]
[Date "2024.04.27"]
[Round "1.1"]
[White "Simacek, Pavel"]
[Black "Hrbek, Stepan"]
[Result "0-1"]
[ECO "D35"]
[WhiteElo "2446"]
[BlackElo "2407"]
[Annotator "TA"]
[PlyCount "102"]
[EventDate "2024.04.25"]
[EventType "tourn"]
[EventCountry "CZE"]
[SourceTitle "playchess.com"]
[Source "ChessBase"]
[SourceQuality "1"]
[TimeControl "40/5400+30:1800+30"]

{[%evp 13,102,14,23,18,22,20,28,3,5,8,27,0,0,8,0,1,11,-2,0,1,7,0,0,0,0,0,0,-20,0,-52,-50,-53,-66,-64,-64,-92,-95,-482,-264,-312,-316,-309,-322,-445,-344,-360,-366,-418,0,-297,-290,-267,-265,-252,-256,-237,-218,-221,-152,-166,-143,-208,-185,-133,-79,-268,-262,-250,-185,-444,-439,-752,-748,-722,-583,-857,-751,-1763,-1810,-1864,-1562,-1952,-1702,-6087,-4614,-29983,-29984,-29989,-29990,-29991,-29990]} 1. d4 {[%emt 0:00:06]} d5 {[%emt 0:00:16]} 2. c4 {[%emt 0:00:10]} e6 {[%emt 0:00:12]} 3. Nc3 {[%emt 0:00:12]} Nf6 {[%emt 0:00:16]} 4. cxd5 {[%emt 0:00:31]} exd5 {[%emt 0:00:12]} 5. Bg5 {[%emt 0:00:14]} Be7 {[%emt 0:00:18]} 6. e3 {[%emt 0:00:18]} O-O {[%emt 0:00:50]} 7. Bd3 {[%emt 0:00:44]} Re8 {[%emt 0:01:40]} 8. Nf3 {[%emt 0:15:26]} h6 {[%emt 0:01:49]} 9. Bf4 {[%emt 0:03:17]} c5 {[%emt 0:00:17]} 10. h3 {[%emt 0:06:14] White has an edge.} Nc6 {[%emt 0:08:37] Threatens to win with ...cxd4.} 11. O-O {[%emt 0:00:09]} c4 {[%emt 0:03:19]} 12. Bc2 {[%emt 0:00:35]} Bd6 {[%emt 0:00:29]} 13. Bxd6 {[%emt 0:11:52]} Qxd6 {[%emt 0:00:16]} 14. b3 {[%emt 0:00:04]} cxb3 {[%emt 0:12:29]} 15. Bxb3 {[%emt 0:00:50]} Bf5 {[%emt 0:07:53]} 16. Rc1 {[%emt 0:00:30]} Rac8 {[%emt 0:02:10]} 17. Ba4 {[%emt 0:17:30][%cal Of3e5]} a6 {[%emt 0:04:35]} 18. Bxc6 {[%emt 0:01:45]} Rxc6 {[%emt 0:01:09]} 19. Ne5 {[%emt 0:00:14]} Rc7 {[%emt 0:04:13]} 20. Qf3 {[%emt 0:19:20]} Be6 {[%emt 0:11:55]} 21. Qe2 {[%emt 0:09:43]} (21. Ne2 $11) 21... Qa3 $15 {[%emt 0:05:35]} 22. Qd3 {[%emt 0:05:42]} Rec8 {[%emt 0:04:16]} 23. Ne2 {[%emt 0:01:15]} Qxa2 {[%emt 0:02:40]} 24. Rb1 {[%emt 0:00:04]} Ne4 {[%emt 0:09:17]} 25. f3 $2 {[%emt 0:02:23][%mdl 8192]} (25. Nf4 $17) 25... Nc3 {[%emt 0:02:58]} (25... Ng3 $142 26. Rfe1 (26. Nxg3 $2 {is the wrong capture.} Rc2 $19) 26... Rc2 (26... Bf5 $2 27. e4 $19)) 26. Rbe1 {[%emt 0:00:06]} Nxe2+ {[%emt 0:01:28]} 27. Rxe2 {[%emt 0:00:03]} Rc2 {[%emt 0:00:10]} 28. Rff2 {[%emt 0:00:49][%cal Re2c2]} Qa1+ {[%emt 0:01:49]} 29. Rf1 {[%emt 0:02:40]} Qb2 {[%emt 0:01:06]} 30. Rff2 {[%emt 0:00:33][%cal Re2c2]} Qa1+ {[%emt 0:05:52]} 31. Rf1 {[%emt 0:00:16]} Rc1 {[%emt 0:01:19]} 32. Ref2 {[%emt 0:00:28]} Rxf1+ {[%emt 0:00:41]} 33. Rxf1 {[%emt 0:00:04]} Qa2 {[%emt 0:00:18] [#] aiming for ...Rc2.} 34. Qb1 {[%emt 0:02:44]} Qd2 {[%emt 0:05:20] Hoping for ...Rc2.} 35. Qe1 {[%emt 0:00:06]} Qxe1 {[%emt 0:00:05]} 36. Rxe1 $19 {[%emt 0:00:03][%mdl 4096] Endgame. KRB-KRN} Rc3 {[%emt 0:00:52]} 37. e4 {[%emt 0:00:44]} (37. Kf2 $17) 37... g5 {[%emt 0:00:49]} 38. Rb1 {[%emt 0:01:10]} f6 {[%emt 0:01:01]} (38... dxe4 $142 {And now ...e3 would win.} 39. fxe4 Re3 40. Rxb7 Re1+ (40... Rxe4 41. Rb6 $17) 41. Kf2 Rxe4) 39. Rb6 $2 {[%emt 0:00:07]} (39. Ng4 $17) 39... fxe5 {[%emt 0:00:29]} 40. Rxe6 {[%emt 0:00:03]} dxe4 {[%emt 0:00:45]} 41. fxe4 $2 {[%emt 0:06:40]} (41. d5 {was called for.}) 41... exd4 {[%emt 0:04:04]} 42. Rxh6 {[%emt 0:03:30] KR-KR} (42. Kf2 $142 a5 43. Rg6+ Kf8 44. Rf6+ Ke8 45. Rxh6) 42... Rc6 {[%emt 0:02:22]} 43. Rh5 {[%emt 0:00:04]} Rg6 {[%emt 0:02:19]} 44. Kf2 {[%emt 0:00:03]} a5 {[%emt 0:00:27]} 45. h4 {[%emt 0:00:19]} a4 {[%emt 0:00:18]} 46. hxg5 {[%emt 0:00:25]} a3 {[%emt 0:02:50]} 47. Rh1 {[%emt 0:04:24]} b5 {[%emt 0:03:15]} 48. Ke2 {[%emt 0:03:34]} b4 {[%emt 0:01:32][%cal Ob4b3] [#] ( -> ...b3!)} 49. Kd2 {[%emt 0:03:45]} b3 {[%emt 0:00:11] Black mates.} 50. Kc1 {[%emt 0:00:12]} Rc6+ {[%emt 0:00:38]} 51. Kb1 {[%emt 0:00:07]} b2 {[%emt 0:00:06] Weighted Error Value: White=0.79/Black=0.35.  Loses game:     	White=2     	---        Mistake:       	White=4     	Black=2      Inaccurate:     	White=4     	Black=1      OK:         	White=13    	Black=13     Best:        	White=1     	Black=3} 0-1

[Event "Czech Championship 2024"]
[Site "Ostrava"]
[Date "2024.04.27"]
[Round "1.2"]
[White "Neuman, Petr"]
[Black "Navara, David"]
[Result "1/2-1/2"]
[ECO "B22"]
[WhiteElo "2429"]
[BlackElo "2678"]
[Annotator "TA"]
[PlyCount "63"]
[EventDate "2024.04.25"]
[EventType "tourn"]
[EventCountry "CZE"]
[SourceTitle "playchess.com"]
[Source "ChessBase"]
[SourceQuality "1"]
[TimeControl "40/5400+30:1800+30"]

{[%evp 22,63,0,0,0,0,0,0,8,0,0,0,0,0,0,0,0,0,0,0,0,0,0,0,0,0,0,-8,0,0,0,0,0,0,0,0,0,0,9,9,9,8,8,11]} 1. e4 {[%emt 0:00:07]} c5 {[%emt 0:00:05]} 2. c3 {[%emt 0:00:19]} Nf6 {[%emt 0:00:25]} 3. e5 {[%emt 0:00:13]} Nd5 {[%emt 0:00:06]} 4. Nf3 {[%emt 0:00:39]} Nc6 {[%emt 0:01:03]} 5. d4 {[%emt 0:00:38]} cxd4 {[%emt 0:00:13]} 6. cxd4 {[%emt 0:00:33]} d6 {[%emt 0:00:39]} 7. Bc4 {[%emt 0:01:16]} Nb6 {[%emt 0:00:56]} 8. Bb5 {[%emt 0:00:25]} dxe5 {[%emt 0:01:05]} 9. Nxe5 {[%emt 0:00:17]} Bd7 {[%emt 0:00:29]} 10. Nxd7 {[%emt 0:00:33]} Qxd7 {[%emt 0:00:08]} 11. Nc3 {[%emt 0:00:57]} e6 {[%emt 0:00:53]} 12. O-O {[%emt 0:00:13] The position is equal.} a6 {[%emt 0:01:34]} 13. Bxc6 {[%emt 0:01:07]} Qxc6 {[%emt 0:00:19]} 14. Be3 {[%emt 0:00:53]} Be7 {[%emt 0:11:17]} 15. Rc1 {[%emt 0:20:15]} O-O {[%emt 0:01:57]} 16. d5 {[%emt 0:04:59]} Nxd5 {[%emt 0:00:30]} 17. Nxd5 {[%emt 0:00:14]} Qxd5 {[%emt 0:00:08]} 18. Qxd5 {[%emt 0:00:10]} exd5 {[%emt 0:00:08]} 19. Rc7 {[%emt 0:00:07][%csl LRb7,LRe7]} Bf6 {[%emt 0:00:17]} 20. Rxb7 {[%emt 0:00:06]} d4 {[%emt 0:06:43]} 21. Bd2 {[%emt 0:02:50]} Rfc8 {[%emt 0:04:42]} 22. Rd1 {[%emt 0:03:11]} Rc2 {[%emt 0:02:07]} 23. Kf1 {[%emt 0:04:31]} Rd8 {[%emt 0:08:17]} 24. Rb3 {[%emt 0:02:18]} h5 {[%emt 0:03:49]} 25. a4 {[%emt 0:04:57]} d3 {[%emt 0:04:10]} 26. Be3 {[%emt 0:17:26]} (26. Bc3 {simplifies} Bxc3 27. Rxc3 Rxb2 28. Rcxd3 Rxd3 29. Rxd3 Rb4 30. Rd8+) 26... d2 {[%emt 0:02:58]} 27. Rb6 {[%emt 0:11:59]} Bxb2 {[%emt 0:06:48]} 28. Rxa6 {[%emt 0:00:08]} Bc1 {[%emt 0:00:45]} 29. Ra5 {[%emt 0:05:50]} Ra2 {[%emt 0:01:32]} 30. Rxh5 {[%emt 0:01:14]} Rxa4 {[%emt 0:00:09]} 31. Ke2 {[%emt 0:00:40]} Re4 {[%emt 0:01:40]} 32. Rc5 {[%emt 0:01:32] An even fight not without its subleties.   Weighted Error Value: White=0.01 (flawless) /Black=0.02 (flawless) .  OK:         	White=13    	Black=6      Best:        	White=1     	Black=1} 1/2-1/2

[Event "Czech Championship 2024"]
[Site "Ostrava"]
[Date "2024.04.27"]
[Round "1.3"]
[White "Nemec, Jachym"]
[Black "Kraus, Tomas"]
[Result "1-0"]
[ECO "E01"]
[WhiteElo "2416"]
[BlackElo "2488"]
[Annotator "TA"]
[PlyCount "59"]
[EventDate "2024.04.25"]
[EventType "tourn"]
[EventCountry "CZE"]
[SourceTitle "playchess.com"]
[Source "ChessBase"]
[SourceQuality "1"]
[TimeControl "40/5400+30:1800+30"]

{[%evp 15,58,0,0,0,0,0,0,0,12,0,16,43,35,28,23,21,18,-91,-93,-122,-122,-138,-29,-29,-29,-50,-43,-25,0,-87,310,303,308,316,1355,1222,2103,2045,1819,1758,29976,29977,29977,29978,29999]} 1. d4 {[%emt 0:00:04]} e6 {[%emt 0:00:05]} 2. Nf3 {[%emt 0:01:04]} Nf6 {[%emt 0:00:37]} 3. c4 {[%emt 0:00:11]} d5 {[%emt 0:00:13]} 4. g3 {[%emt 0:00:20]} dxc4 {[%emt 0:01:10]} 5. Bg2 {[%emt 0:02:31]} Nbd7 {[%emt 0:00:39]} 6. O-O {[%emt 0:04:29]} c6 {[%emt 0:00:35]} 7. Nc3 {[%emt 0:03:39]} b5 {[%emt 0:06:33]} 8. e4 {[%emt 0:00:32][%cal Be2e4,Be4e5][%mdl 32]} Bb7 {[%emt 0:00:11]} 9. e5 {[%emt 0:00:36]} Nd5 {[%emt 0:00:04]} 10. Ng5 {[%emt 0:00:13] aiming for Qh5.} h6 {[%emt 0:01:28]} 11. Nxe6 {[%emt 0:01:25] The position is equal.} fxe6 {[%emt 0:00:08]} 12. Qh5+ {[%emt 0:00:05]} Ke7 {[%emt 0:00:05]} 13. Ne4 $1 {[%emt 0:00:18]} Qe8 {[%emt 0:02:30]} 14. Bg5+ {[%emt 0:00:16]} hxg5 {[%emt 0:00:04]} 15. Qxh8 {[%emt 0:00:08][%cal Oe4d6] Hoping for Nd6!} Kd8 $1 {[%emt 0:00:47]} 16. Qg8 {[%emt 0:07:02]} (16. Nxg5 $11 Kc7 17. Qg8) 16... Qg6 $1 $17 {[%emt 0:33:02]} 17. Nd6 {[%emt 0:13:21][%cal Og2e4] Strongly threatening Be4!} Kc7 {[%emt 0:06:15]} 18. Be4 {[%emt 0:02:20] [#]} (18. Bxd5 $2 exd5 19. Qh8 Be7 $19 (19... Bxd6 $2 20. exd6+ Kxd6 21. Qh3 $19)) 18... Qh6 {[%emt 0:05:46]} (18... Ne7 $1 $17 {[%cal Re7g8]} 19. Bxg6 Nxg8 20. Nxb7 Kxb7) 19. Nxb7 $1 $11 {[%emt 0:05:13]} Kxb7 {[%emt 0:01:22]} 20. Qf7 {[%emt 0:00:35]} Kc7 {[%emt 0:13:14] Threatens to win with ...Bb4.} 21. a4 $1 {[%emt 0:05:54] axb5 would now be deadly.} b4 {[%emt 0:01:46][%cal Of8c5]} (21... Bc5 $5 22. Bxd5 (22. dxc5 Rf8 $17) 22... Rf8 23. Qxe6 Bxd4 $15) 22. Rfc1 {[%emt 0:15:52] [#]} (22. Rac1 $11 Bc5 (22... c3 $2 23. Bxd5 exd5 24. bxc3 $18) 23. Bxd5 (23. dxc5 $2 Rh8 $19) 23... cxd5 (23... Rh8 24. h4 $15) 24. dxc5) 22... c3 $2 {[%emt 0:02:08][%mdl 8192] This costs Black the game.} (22... Bc5 $1 $17 {and life is bright.} 23. Rxc4 (23. dxc5 $2 {loses.} Rh8 $19) 23... Rf8) 23. Bxd5 {[%emt 0:04:40]} cxd5 {[%emt 0:00:39]} 24. bxc3 {[%emt 0:01:52]} b3 $2 {[%emt 0:02:03]} (24... Kd8 25. cxb4 Qh3) 25. c4 $18 {[%emt 0:04:03]} dxc4 {[%emt 0:07:41]} 26. Rxc4+ {[%emt 0:00:08]} Kd8 {[%emt 0:00:24]} 27. d5 {[%emt 0:01:54][%cal Bd4d5,Bd5e6][%mdl 32]} (27. Rb1 Rb8 $16) 27... b2 {[%emt 0:02:45]} 28. Rd1 {[%emt 0:02:35] White mates.} (28. Rb1 Qh7 29. Rxb2 Qf5 30. dxe6 (30. Qxe6 Qxe6 31. dxe6 Nc5 $18) 30... Qxf7 31. exf7 Nxe5 32. Rd4+ Ke7 $18) 28... Qh7 {[%emt 0:01:14]} 29. dxe6 {[%emt 0:05:10][%csl Ge6,Gf7][%cal Rd1d7]} b1=Q {[%emt 0:00:04]} 30. Qxd7# {[%emt 0:19:00] Weighted Error Value: White=0.14 (very precise) /Black=0.67.  Loses game:     	---       	Black=1      Mistake:       	White=2     	Black=2      Inaccurate:     	White=1     	Black=1      OK:         	White=4     	Black=4      Best:        	White=5     	Black=1      Strong:       	White=3     	Black=2} 1-0

[Event "Czech Championship 2024"]
[Site "Ostrava"]
[Date "2024.04.27"]
[Round "1.4"]
[White "Stalmach, Richard"]
[Black "Stocek, Jiri"]
[Result "1/2-1/2"]
[ECO "A13"]
[WhiteElo "2446"]
[BlackElo "2531"]
[Annotator "TA"]
[PlyCount "103"]
[EventDate "2024.04.25"]
[EventType "tourn"]
[EventCountry "CZE"]
[SourceTitle "playchess.com"]
[Source "ChessBase"]
[SourceQuality "1"]
[TimeControl "40/5400+30:1800+30"]

{[%evp 31,103,-212,-219,-225,-233,-270,-237,-272,-212,-254,-146,-151,-108,-266,-282,-458,-456,-587,-577,-919,-282,-410,-381,-484,-417,-414,-385,-371,-116,-126,-68,-116,-52,-54,-54,-57,-46,-52,-33,-33,-33,-33,-33,-33,-33,-33,-33,-33,-26,-26,-8,-8,-8,-8,-8,-8,-8,-8,-8,-8,0,0,0,-8,-8,-8,-8,-8,-8,-8,-8,-8,-8,-8]} 1. c4 {[%emt 0:00:05]} e6 {[%emt 0:05:30]} 2. g3 {[%emt 0:00:49]} g6 {[%emt 0:00:49]} 3. d4 {[%emt 0:01:13]} Bg7 {[%emt 0:01:31]} 4. Bg2 {[%emt 0:04:29]} d5 {[%emt 0:03:24]} 5. Nf3 {[%emt 0:01:58]} Nc6 {[%emt 0:02:12]} 6. Bg5 {[%emt 0:05:20] A13: English Opening: 1...e6.} Nge7 {[%emt 0:02:27]} 7. cxd5 {[%emt 0:03:44]} exd5 {[%emt 0:00:51]} 8. h4 $146 {[%emt 0:01:56]} ({Predecessor:} 8. Nc3 h6 9. Bxe7 Nxe7 10. O-O O-O 11. b4 c6 12. e3 a6 13. a4 Bf5 14. Qb3 Bd3 15. Rfd1 Bc4 16. Qc2 b5 17. Ne5 Bxe5 18. dxe5 Qb8 19. axb5 axb5 20. Rxa8 Qxa8 {1-0 Chuprov,D (2405)-Bykhovsky,A (2470) Kurgan 1993}) 8... h6 {[%emt 0:14:56]} 9. Bf4 {[%emt 0:00:37]} Bg4 {[%emt 0:00:47]} 10. e3 {[%emt 0:04:33]} f6 {[%emt 0:07:52]} 11. Bh3 {[%emt 0:10:57]} Bxh3 {[%emt 0:01:37]} 12. Rxh3 {[%emt 0:00:05]} Qd7 {[%emt 0:00:53]} 13. Ng1 {[%emt 0:02:18]} O-O-O {[%emt 0:05:17]} 14. g4 {[%emt 0:00:03]} g5 {[%emt 0:01:02]} 15. Bh2 {[%emt 0:07:51]} f5 {[%emt 0:02:15]} 16. gxf5 {[%emt 0:00:09]} Nxf5 {[%emt 0:00:39]} 17. Nc3 {[%emt 0:00:06]} Rde8 {[%emt 0:19:50]} (17... gxh4 18. Qd3) 18. Qg4 {[%emt 0:13:56]} Bxd4 {[%emt 0:10:52]} (18... Nxh4 19. Qxd7+ Kxd7 20. Nxd5 $11) 19. hxg5 {[%emt 0:03:01]} hxg5 {[%emt 0:06:46]} 20. O-O-O {[%emt 0:00:58] [#]} Bxc3 {[%emt 0:01:43]} ({Better is} 20... Rxh3 $1 $19 21. Nxh3 Bxc3 22. bxc3 Rh8) 21. bxc3 $17 {[%emt 0:00:04]} Rxh3 {[%emt 0:02:35]} 22. Nxh3 $2 {[%emt 0:00:11]} (22. Qxh3 $17 {is the only way for White.} Na5 23. Nf3) 22... Rh8 $19 {[%emt 0:00:44]} 23. Bg1 $2 {[%emt 0:12:29]} (23. e4 Nfe7 24. Qxd7+ Kxd7 25. exd5) 23... Rh4 $19 {[%emt 0:00:54]} 24. Qg2 {[%emt 0:00:38]} Qg7 {[%emt 0:00:35]} 25. Rd3 {[%emt 0:02:08]} Rc4 $2 {[%emt 0:03:55]} (25... Nb4 26. Rd4 Nxd4 (26... Nxa2+ $2 27. Kd2 $19) 27. exd4 Nd3+ (27... Nxa2+ $2 28. Kd2 $19) 28. Kd2 g4 29. Kxd3 Qg6+ (29... Rxh3+ $2 30. f3 $19) 30. Kd2 Rxh3) 26. Kd2 {[%emt 0:04:11]} (26. Qxd5 {was necessary.} Rxc3+ 27. Rxc3 Qxc3+ 28. Kd1) 26... Nb4 $19 {[%emt 0:01:03]} 27. Qf3 {[%emt 0:00:00]} Nh4 {[%emt 0:01:46]} (27... Nxd3 28. Qxf5+ Kb8 29. Qxd3 $15) 28. Qh5 {[%emt 0:00:06]} b6 {[%emt 0:00:45]} (28... Nxd3 29. Qe8#) 29. Rd4 {[%emt 0:01:37]} ({Avoid the trap} 29. Qe8+ $2 Kb7 30. Qd8 Qh7 $19 (30... Nxd3 $2 31. Qxd5+ Rc6 32. Kxd3 $19) (30... Nxd3 $2 31. Qxd5+ Rc6 32. Kxd3 $19)) 29... Rxd4+ $2 {[%emt 0:00:28]} (29... Qd7 $19 30. Nxg5 Nf5 (30... Nxa2 31. Rxh4 Rxh4 32. Qxh4 $16) 31. Qh8+ Kb7) 30. exd4 $17 {[%emt 0:00:47]} Nc6 {[%emt 0:00:13]} (30... Nxa2 $17 31. Qg4+ Kb7) 31. f4 {[%emt 0:00:08] [#]} (31. Qg4+ $1 $15 {feels stronger.} Kb7 32. f4) 31... Qd7 {[%emt 0:00:48]} (31... g4 $1 $17 {[%cal Rg4h3]} 32. Qxh4 gxh3 33. Qxh3+ Kb7) 32. Nxg5 $15 {[%emt 0:00:30]} Nf5 {[%emt 0:00:05]} 33. Qf7 {[%emt 0:03:34]} Nce7 {[%emt 0:00:35]} 34. Qe6 $1 {[%emt 0:01:43]} Nd6 {[%emt 0:00:18]} 35. Qxd7+ {[%emt 0:01:00]} Kxd7 {[%emt 0:00:05]} 36. Ke2 {[%emt 0:01:14]} Nef5 {[%emt 0:00:22]} 37. Bf2 {[%emt 0:00:53]} Ke7 {[%emt 0:01:03]} 38. Nf3 {[%emt 0:01:53]} Ne4 {[%emt 0:00:18]} 39. Be1 {[%emt 0:00:08]} a5 {[%emt 0:00:15]} 40. Kd3 {[%emt 0:00:13]} b5 {[%emt 0:01:26]} 41. Ne5 {[%emt 0:31:04]} Ke6 {[%emt 0:06:12]} 42. c4 {[%emt 0:00:00]} bxc4+ {[%emt 0:00:56]} 43. Nxc4 {[%emt 0:00:00]} c5 {[%emt 0:07:32]} 44. dxc5 {[%emt 0:00:00]} Nxc5+ {[%emt 0:00:39]} (44... dxc4+ 45. Kxe4 a4 46. Bf2 $18) 45. Kc3 {[%emt 0:00:00]} Na4+ {[%emt 0:05:17]} 46. Kb3 {[%emt 0:00:00]} Nc5+ {[%emt 0:00:05]} 47. Kc3 {[%emt 0:00:00]} dxc4 {[%emt 0:00:34]} 48. Kxc4 {[%emt 0:00:00]} Nb7 {[%emt 0:00:06]} 49. Kb5 {[%emt 0:00:00]} Nfd6+ {[%emt 0:02:58]} 50. Kb6 {[%emt 0:00:00]} a4 {[%emt 0:03:24]} 51. Bb4 {[%emt 0:00:00]} Nd8 {[%emt 0:03:09]} 52. Bxd6 {[%emt 0:17:51]} 1/2-1/2

[Event "Czech Championship 2024"]
[Site "Ostrava"]
[Date "2024.04.27"]
[Round "1.5"]
[White "Finek, Vaclav"]
[Black "Jirovsky, Milos"]
[Result "1-0"]
[ECO "D15"]
[WhiteElo "2431"]
[BlackElo "2450"]
[Annotator "TA"]
[PlyCount "53"]
[EventDate "2024.04.25"]
[EventType "tourn"]
[EventCountry "CZE"]
[SourceTitle "playchess.com"]
[Source "ChessBase"]
[SourceQuality "1"]
[TimeControl "40/5400+30:1800+30"]

{[%evp 9,53,31,29,18,20,22,20,22,15,10,19,14,16,9,21,13,19,10,16,7,20,13,23,-12,12,0,14,0,13,17,29,37,137,140,145,136,177,150,659,656,593,585,808,808,29996,418]} 1. d4 {[%emt 0:00:03]} d5 {[%emt 0:00:08]} 2. c4 {[%emt 0:00:06]} c6 {[%emt 0:00:06]} 3. Nf3 {[%emt 0:00:05]} Nf6 {[%emt 0:00:06]} 4. e3 {[%emt 0:00:05]} a6 {[%emt 0:03:32]} 5. Nc3 {[%emt 0:07:15]} Bf5 {[%emt 0:00:24]} 6. Bd3 {[%emt 0:00:33]} Bxd3 {[%emt 0:00:16]} 7. Qxd3 {[%emt 0:00:06]} e6 {[%emt 0:00:05]} 8. O-O {[%emt 0:00:31] The position is equal.} Be7 {[%emt 0:00:43]} 9. e4 {[%emt 0:00:47]} dxe4 {[%emt 0:00:11]} 10. Nxe4 {[%emt 0:00:07]} Nbd7 {[%emt 0:00:05][%cal Bb8d7,Bd7f8,Bf8g6][%mdl 32]} 11. Nc3 {[%emt 0:08:11]} O-O {[%emt 0:00:28]} 12. Bf4 {[%emt 0:00:20]} Re8 {[%emt 0:03:10]} 13. h3 {[%emt 0:03:33]} Nf8 {[%emt 0:00:32]} 14. Rad1 {[%emt 0:02:39]} Ng6 {[%emt 0:01:50]} 15. Bh2 {[%emt 0:02:17]} Bd6 {[%emt 0:06:23]} 16. Ne5 {[%emt 0:12:45]} Qa5 {[%emt 0:01:55]} 17. Qe2 {[%emt 0:03:34]} Rad8 {[%emt 0:01:05]} 18. Kh1 {[%emt 0:04:23]} Bb8 {[%emt 0:06:42]} 19. a3 {[%emt 0:02:48]} Nd7 {[%emt 0:10:10][%cal Rd7e5]} 20. f4 {[%emt 0:05:03][%cal Bf2f4,Bf4f5,Bf5g6,Bg6f7][%mdl 32]} c5 {[%emt 0:26:30]} (20... Nf6 $14) 21. Nxd7 $16 {[%emt 0:04:45]} Rxd7 {[%emt 0:00:06] [#]} 22. f5 $1 {[%emt 0:03:02]} Bxh2 {[%emt 0:10:03]} 23. fxg6 {[%emt 0:01:40]} Bb8 $2 {[%emt 0:04:18] [#] This costs Black the game.} ({Don't blunder} 23... fxg6 $2 24. Kxh2 cxd4 25. Ne4 Qc7+ 26. Kg1 $18) (23... hxg6 $16 24. Kxh2 cxd4) 24. gxf7+ $1 $18 {[%emt 0:04:09]} Rxf7 {[%emt 0:00:04]} 25. Rxf7 {[%emt 0:01:26]} cxd4 {[%emt 0:02:06][%cal Bc5d4,Bd4c3][%mdl 32] [#]} 26. Rdf1 {[%emt 0:08:17]} dxc3 {[%emt 0:00:17] [#]} (26... Qe5 27. Qxe5) 27. Rf8+ $3 {[%emt 0:00:38][%mdl 512] Weighted Error Value: White=0.06 (flawless) /Black=0.59.  Loses game:     	---       	Black=1      Mistake:       	---       	Black=1      Inaccurate:     	White=1     	Black=1      OK:         	White=6     	Black=7      Best:        	White=1     	---        Strong:       	White=2     	---} 1-0

[Event "Czech Championship 2024"]
[Site "Ostrava"]
[Date "2024.04.28"]
[Round "2.1"]
[White "Hrbek, Stepan"]
[Black "Jirovsky, Milos"]
[Result "0-1"]
[ECO "D31"]
[WhiteElo "2407"]
[BlackElo "2450"]
[Annotator "TA"]
[PlyCount "56"]
[EventDate "2024.04.25"]
[EventType "tourn"]
[EventCountry "CZE"]
[SourceTitle "playchess.com"]
[Source "ChessBase"]
[SourceQuality "1"]
[TimeControl "40/5400+30:1800+30"]

{[%evp 9,56,27,21,11,29,22,27,17,25,47,19,14,9,12,18,22,31,4,7,-13,-7,-9,-6,-13,0,0,0,0,0,0,12,0,4,-310,-314,-360,-336,-360,-358,-443,-445,-445,-386,-29987,-29988,-29988,-29989,-29993,-1652]} 1. d4 {[%emt 0:00:09]} d5 {[%emt 0:00:10]} 2. c4 {[%emt 0:00:10]} e6 {[%emt 0:00:22]} 3. Nc3 {[%emt 0:00:18]} a6 {[%emt 0:03:43]} 4. cxd5 {[%emt 0:02:31]} exd5 {[%emt 0:00:36]} 5. Nf3 {[%emt 0:00:32]} c6 {[%emt 0:00:30]} 6. e4 {[%emt 0:06:03]} dxe4 {[%emt 0:02:46]} 7. Ng5 {[%emt 0:01:36][%cal Og5f7]} h6 {[%emt 0:05:05]} 8. Ngxe4 {[%emt 0:07:01] Bc4 would now be deadly. White has an edge.} Nf6 {[%emt 0:00:39]} 9. Nxf6+ {[%emt 0:07:04]} Qxf6 {[%emt 0:00:07]} 10. Bc4 {[%emt 0:00:11]} Be6 {[%emt 0:15:35]} 11. d5 {[%emt 0:35:59]} cxd5 {[%emt 0:08:15]} 12. Bxd5 {[%emt 0:00:12]} Nc6 {[%emt 0:05:53]} 13. Bxc6+ {[%emt 0:04:02]} bxc6 {[%emt 0:00:08]} 14. O-O {[%emt 0:01:05]} Be7 {[%emt 0:04:33]} 15. Qa4 {[%emt 0:04:24]} O-O {[%emt 0:02:15]} 16. Qxc6 {[%emt 0:00:14]} Rfc8 {[%emt 0:00:19]} 17. Qe4 {[%emt 0:02:16]} Rab8 {[%emt 0:04:40]} 18. Nd5 {[%emt 0:01:50]} Bxd5 {[%emt 0:00:52]} 19. Qxd5 {[%emt 0:00:06]} Bd6 {[%emt 0:04:08]} 20. Rb1 {[%emt 0:04:14]} Be5 {[%emt 0:07:53][%cal Of6f5] [#] Hoping for ...Qf5!} 21. b4 $2 {[%emt 0:02:15][%mdl 8192] Loses the game.} (21. g3 $11 {and White has nothing to worry.}) 21... Qf5 $19 {[%emt 0:02:34] Strongly threatening ...Bxh2+.} 22. Qb3 {[%emt 0:05:11]} Rc3 {[%emt 0:00:19]} 23. Qb2 {[%emt 0:00:02] [#]} Rh3 {[%emt 0:04:10][%mdl 512]} 24. Qe2 {[%emt 0:00:04]} (24. Qxe5 Qxe5) 24... Bxh2+ {[%emt 0:04:46]} 25. Kh1 {[%emt 0:00:08]} Rh4 {[%emt 0:00:36] ...Qf6 is the strong threat.} (25... Qxb1 26. gxh3 Bd6 27. a3 $15) (25... Bf4+ 26. Kg1 (26. gxh3 $2 Qxh3+ 27. Kg1 Qh2#) 26... Bh2+ (26... Qxb1 $2 27. Bxf4 Rxb4 28. gxh3 $18) 27. Kh1) 26. Be3 $2 {[%emt 0:09:40]} (26. Rb3 $19) 26... Qe5 {[%emt 0:00:47] Black mates.} (26... Rhxb4 $2 {too greedy.} 27. Rxb4 Rxb4 28. Kxh2 $18) 27. g3 {[%emt 0:00:06]} Bxg3+ {[%emt 0:00:20]} (27... Rhxb4 $2 {is the wrong capture.} 28. Rxb4 Rxb4 29. Kxh2 $18) 28. Kg2 {[%emt 0:01:41]} Bf4 {[%emt 0:01:34] Weighted Error Value: White=0.60/Black=0.06 (flawless) .  Loses game:     	White=1     	---        Mistake:       	White=1     	---        Inaccurate:     	White=1     	---        OK:         	White=9     	Black=7      Best:        	---       	Black=5} (28... Rh2+ $142 29. Kf3 Qd5+ (29... Qh5+ {is a self mate.} 30. Kxg3 Qh4+ 31. Kf3 Re8 32. Rg1 Qh3+ 33. Kf4 g5+ 34. Rxg5+ hxg5+ 35. Kxg5 Qh4+ 36. Kf5 Qe4+ 37. Kg5 Re5+ 38. Kf6 Rf5#) 30. Kxg3 Qg2+ 31. Kf4 Re8 (31... Qg5+ $2 32. Ke4 $19) 32. Rg1 Rh4+ 33. Qg4 Rxg4+ 34. Kf5 Qe4#) 0-1